Cogmind - Beta 15 @@@ ROGUE MODE // 2025.05.11 @ 14:22:16 Player: WetterLettuce Result: Destroyed by D-53 Grenadier with Mini Grenade Launcher Performance ------------- Evolutions (1) 500 Regions Visited (4) 800 Robots Destroyed (31) 155 Value Destroyed (676) 676 Prototype IDs (2) 40 Alien Tech Used (0) 0 Bonus (0) 0 TOTAL SCORE: 2171 Bonus ------- None Cogmind --------- Core Integrity 0/400 Matter 260/300 Energy 125/125 System Corruption 0% Temperature Cool (0) Movement Flying (37) Location -9/Mines Parts ------- > --- POWER (1) -------- Light Ion Engine > --- PROPULSION (2) --- Flight Unit Flight Unit > --- UTILITY (4) ------ Visual Processing Unit Improved Signal Interpreter Hacking Suite > --- WEAPON (2) ------- Light Assault Rifle Improved Assault Rifle > --- INVENTORY (5) ---- Flight Unit Small Storage Unit Improved Light Cannon Flak Cannon Katana Peak State ------------ > --- POWER ------------ Light Ion Engine > --- PROPULSION ------- Flight Unit Flight Unit > --- UTILITY ---------- Visual Processing Unit Improved Signal Interpreter Hacking Suite > --- WEAPON ----------- Light Assault Rifle Improved Assault Rifle > --- INVENTORY -------- Flight Unit Small Storage Unit Improved Light Cannon Flak Cannon Katana [Rating: 16] Favorites ----------- Power Ion Engine Engine Ion Engine Propulsion Aluminum Leg Leg Aluminum Leg Wheel Wheel Hover Unit Hover Unit Flight Unit Flight Unit Utility Hacking Suite Device Heat Sink Storage Small Storage Unit Processor Signal Interpreter Hackware Hacking Suite Protection Light Armor Plating Weapon Light Assault Rifle Energy Gun Medium Laser Energy Cannon Beam Cannon Ballistic Gun Light Assault Rifle Build | -11 -10 -10 -9 -9 ------- Run | Yrd Mat Min Mat Min Slots Evolved 2 | . . . 2 . Power . | . . . . . Propulsion . | . . . . . Utility 2 | . . . 2 . Weapon . | . . . . . Parts Attached 36 | 6 7 2 13 8 Power 5 | 1 . 1 2 1 Engine 5 | 1 . 1 2 1 Core . | . . . . . Reactor . | . . . . . Propulsion 13 | 2 2 . 5 4 Treads . | . . . . . Leg 7 | 2 2 . 3 . Wheel 1 | . . . 1 . Hover 1 | . . . 1 . Flight 4 | . . . . 4 Utility 9 | 1 3 . 4 1 Device 1 | . . . 1 . Storage 1 | 1 . . . . Processor 4 | . 2 . 1 1 Hackware 2 | . 1 . 1 . Protection 1 | . . . 1 . Artifact . | . . . . . Weapon 9 | 2 2 1 2 2 Energy Gun 2 | 1 1 . . . Energy Cannon 1 | . . . 1 . Ballistic Gun 6 | 1 1 1 1 2 Ballistic Cannon . | . . . . . Launcher . | . . . . . Special Weapon . | . . . . . Impact Weapon . | . . . . . Slashing Weapon . | . . . . . Piercing Weapon . | . . . . . Special Melee Weapon . | . . . . . Unidentified Prototypes 2 | . . . 2 . Parts Lost 10 | . . 1 6 3 Power 1 | . . 1 . . Propulsion 5 | . . . 3 2 Utility 3 | . . . 2 1 Weapon 1 | . . . 1 . Highest Loss Streak 5 | . . 1 5 2 To Critical Strikes . | . . . . . Average Backups 4 | 1 5 5 4 5 Power . | . . . . . Propulsion 1 | . 2 1 . . Utility 1 | . 1 3 1 1 Weapon 1 | . 1 1 2 3 Tool/Special . | . . . . . Unused Backups 8 | . 4 . . 4 Power 1 | . 1 . . . Propulsion 3 | . 2 . . 1 Utility . | . . . . . Weapon 4 | . 1 . . 3 Tool/Special . | . . . . . Average Slot Usage (%) 84 | . 97 99 65 71 Engine 10 | . 14 13 5 7 Leg 20 | . 28 28 16 3 Flight 1 | . . . . 13 Device 3 | . . . 8 3 Storage 4 | . 10 . . . Processor 11 | . 10 14 11 12 Hackware 6 | . 3 14 4 11 Protection 1 | . . . 3 . Energy Gun 8 | . 14 14 1 . Ballistic Gun 12 | . 14 14 7 17 Peak Build Rating 16 | 6 9 9 12 16 Average Rating 8 | 4 7 8 8 13 On Entrance 7 | . 6 9 9 12 Naked Turns . | . . . . . Heaviest Build 15 | 12 13 8 15 8 Greatest Support 23 | 20 20 20 23 8 Greatest Overweight (x) 1 | 1 . . . 1 Average Overweight (x) . | . . . . . Largest Inventory Capacity 8 | 8 8 5 5 5 Average Capacity 6 | 7 7 5 5 5 Most Carried 8 | 2 8 5 5 5 Average Carried 4 | 1 5 5 4 4 Final Capacity 8 | 8 5 5 5 5 Final Carried 5 | 2 5 5 5 5 Class Distribution -------------------- 64% | Mutant 35% | Scavenger-Mutant Dominant Class ---------------- Mutant | -10/Materials Scavenger-Mutant | -10/Mines Mutant | -9/Materials Scavenger-Mutant | -9/Mines Resources | -11 -10 -10 -9 -9 ----------- Run | Yrd Mat Min Mat Min Matter Collected 672 | 260 124 22 125 141 Remotely . | . . . . . Salvage Created 871 | . 547 42 222 60 Parts 65 | . 32 5 19 9 Haulers Intercepted . | . . . . . Recyclers Shooed . | . . . . . Parts Field Recycled . | . . . . . Retrieved Matter . | . . . . . Parts Self-Destructed . | . . . . . Prevented . | . . . . . Kills | -11 -10 -10 -9 -9 ------- Run | Yrd Mat Min Mat Min Combat Hostiles Destroyed 26 | . 14 3 4 5 Guns 22 | . 14 3 . 5 Cannons 4 | . . . 4 . Classes Destroyed 7 | . 5 . 2 . Worker 1 | . 1 . . . Builder 1 | . . . 1 . Operator 2 | . 1 . 1 . Watcher 1 | . 1 . . . Swarmer 12 | . 4 3 . 5 Grunt 13 | . 10 . 3 . Duelist 1 | . . . 1 . Best Kill Streak 4 | . 4 3 3 4 Combat Bots Only 4 | . 3 3 2 4 Max Kills in Single Turn 2 | . 1 2 1 1 Gunslinging 1 | . . 1 . . Exploded . | . . . . . Melee . | . . . . . Uniques/NPCs Destroyed . | . . . . . Combat | -11 -10 -10 -9 -9 -------- Run | Yrd Mat Min Mat Min Hostile Shots Fired 218 | . 49 17 98 54 Missed 76 | . 17 4 44 11 Hits 142 | . 32 13 54 43 Melee 2 | . . . 2 . Projectile 140 | . 32 13 52 43 AOE 4 | . . . . 4 Critical Strikes 4 | . 1 . 1 2 Damage Taken 1690 | . 350 96 783 461 Core 513 | . 89 19 260 145 Absorbed by Shields . | . . . . . Core Remaining (%) 78 | 100 . 56 . . Volleys Fired 105 | . 54 7 22 22 Largest 2 | . 2 2 2 2 Hottest 80 | . 70 70 80 43 Shots Fired 193 | . 105 14 40 34 Gun 182 | . 105 14 29 34 Cannon 11 | . . . 11 . Launcher . | . . . . . Special . | . . . . . Kinetic 117 | . 54 7 22 34 Thermal 76 | . 51 7 18 . Explosive . | . . . . . Electromagnetic . | . . . . . Robot Hit Streak 8 | . 8 2 5 4 Robot Miss Streak 11 | . 3 3 3 11 Penetration Max . | . . . . . Secondary Targets 2 | . 1 1 . . Max Gunslinging Chain 1 | . 1 1 . . Shots Hit Robots 103 | . 55 7 25 16 Core Hits 51 | . 31 3 12 5 Critical Kills . | . . . . . Critical Parts Destroyed . | . . . . . Critical Strikes 4 | . 4 . . . Burn 4 | . 4 . . . Melee Attacks . | . . . . . Impact . | . . . . . Slashing . | . . . . . Piercing . | . . . . . Sneak Attacks . | . . . . . Combat Hostiles . | . . . . . Follow-up Attacks . | . . . . . Damage Inflicted 1226 | . 609 72 323 222 Guns 1096 | . 609 72 193 222 Cannons 121 | . . . 121 . Explosions . | . . . . . Melee . | . . . . . Ramming 9 | . . . 9 . Kinetic 641 | . 240 35 144 222 Thermal 576 | . 369 37 170 . Explosive . | . . . . . Electromagnetic . | . . . . . Impact . | . . . . . Slashing . | . . . . . Piercing . | . . . . . Highest Corruption . | . . . . . Average Corruption . | . . . . . Corruption Purged . | . . . . . Corruption Blocked . | . . . . . Overload Shots . | . . . . . Overflow Damage . | . . . . . Projectiles . | . . . . . Explosions . | . . . . . Melee . | . . . . . Knockbacks . | . . . . . Impact . | . . . . . Kinetic . | . . . . . Secondary . | . . . . . Self-Inflicted Damage 4 | . . . 4 . Shots . | . . . . . Rammed 1 | . . . 1 . Targets Rammed 1 | . . . 1 . Kicked . | . . . . . Crushed . | . . . . . Highest Temperature 234 | . 234 90 58 . Average Temperature 51 | . 59 51 21 . Received Heat Transfer 411 | . 162 . 249 . Siege Activations . | . . . . . Martial Activations . | . . . . . Shielding Activations . | . . . . . Robots Disrupted . | . . . . . Combat Hostiles . | . . . . . Robots Corrupted . | . . . . . Combat Hostiles . | . . . . . Parts Fried . | . . . . . Impact Corruptions . | . . . . . Robots Melted . | . . . . . Combat Hostiles . | . . . . . Parts Melted 2 | . 2 . . . Heat Transferred 1829 | . 1311 111 407 . Parts Sabotaged . | . . . . . Parts Stolen . | . . . . . Parts Stripped . | . . . . . Power Chain Reactions . | . . . . . Alert | -11 -10 -10 -9 -9 ------- Run | Yrd Mat Min Mat Min Maximum Alert Level . | . . . . . Low Security (%) 100 | 100 100 100 100 100 Level 1 . | . . . . . Level 2 . | . . . . . Level 3 . | . . . . . Level 4 . | . . . . . Level 5 . | . . . . . High Security . | . . . . . Max Security . | . . . . . Peak Influence 177 | . 177 50 165 110 Initial 50 | . . 4 15 50 Average 68 | . 100 7 63 74 Influence Increases 857 | . 372 70 305 110 Destroy 0b10 Robot/C 520 | . 280 60 80 100 Destroy 0b10 Robot/NC 25 | . 15 . 10 . Destroy Leader 82 | . 42 10 20 10 Successful Hack 5 | . 5 . . . Lose Combat Pursuer 225 | . 30 . 195 . Influence Decreases 807 | . 360 42 215 190 Entered New Map 113 | . . 8 25 80 Time Decay 459 | . 210 24 145 80 Lost Part 85 | . . 10 45 30 Purge Threat 150 | . 150 . . . Squads Dispatched 5 | . 2 . 3 . Investigation 1 | . 1 . . . Extermination . | . . . . . Reinforcement 4 | . 1 . 3 . Assault . | . . . . . Garrison . | . . . . . Intercept . | . . . . . Searches Triggered . | . . . . . Construction Impeded . | . . . . . Haulers Reinforced . | . . . . . Active Scanning Responses . | . . . . . Cargo Convoy Interrupts . | . . . . . Stealth | -11 -10 -10 -9 -9 --------- Run | Yrd Mat Min Mat Min Distress Signals 1 | . . . 1 . Communications Jammed . | . . . . . Distress Signals . | . . . . . Times Spotted 59 | . 20 3 27 9 Peak Tracking Total 16 | . 4 2 16 4 Tactical Retreats 4 | . 1 . 3 . Traps | -11 -10 -10 -9 -9 ------- Run | Yrd Mat Min Mat Min Traps Triggered 1 | . 1 . . . Indirectly . | . . . . . Trap Hack Attempts . | . . . . . Triggered . | . . . . . Disarmed . | . . . . . Reprogrammed . | . . . . . Reused . | . . . . . Traps Extracted . | . . . . . Installed . | . . . . . Triggered . | . . . . . Machines | -11 -10 -10 -9 -9 ---------- Run | Yrd Mat Min Mat Min Machines Disabled . | . . . . . Max in Single Turn . | . . . . . Machines Repaired . | . . . . . Machines Dismantled . | . . . . . Machines Sabotaged . | . . . . . Overloaded Fab Kills . | . . . . . Hacking | -11 -10 -10 -9 -9 --------- Run | Yrd Mat Min Mat Min Machines Accessed 5 | . 4 . 1 . Terminals 5 | . 4 . 1 . Fabricators . | . . . . . Repair Stations . | . . . . . Recycling Units . | . . . . . Scanalyzers . | . . . . . Garrison Access . | . . . . . Total Hacks 15 | . 11 . 4 . Successful 6 | . 5 . 1 . Failed 9 | . 6 . 3 . Catastrophic 2 | . 2 . . . Database Lockouts . | . . . . . Manual 12 | . 8 . 4 . Terminals 15 | . 11 . 4 . Fabricators . | . . . . . Repair Stations . | . . . . . Recycling Units . | . . . . . Scanalyzers . | . . . . . Garrison Access . | . . . . . Terminal Hacks 3 | . 3 . . . Record 1 | . 1 . . . Unreport Threat 1 | . 1 . . . Zone Layout 1 | . 1 . . . Fabricator Hacks . | . . . . . Repair Station Hacks . | . . . . . Recycling Unit Hacks . | . . . . . Scanalyzer . | . . . . . Garrison Access Hacks . | . . . . . Unauthorized Hacks 3 | . 2 . 1 . Terminals 3 | . 2 . 1 . Botnet 3 | . 2 . 1 . Fabricators . | . . . . . Repair Stations . | . . . . . Recycling Units . | . . . . . Scanalyzers . | . . . . . Garrison Access . | . . . . . Data Cores Recovered . | . . . . . Used . | . . . . . Hacking Detections 5 | . 4 . 1 . Full Trace Events . | . . . . . Feedback Events . | . . . . . Feedback Blocked . | . . . . . Robot Schematics Acquired . | . . . . . Robots Built . | . . . . . Authchips . | . . . . . Time . | . . . . . Total Robot Build Rating . | . . . . . Part Schematics Acquired . | . . . . . Parts Built . | . . . . . Authchips . | . . . . . Time . | . . . . . Total Part Build Rating . | . . . . . Parts Repaired . | . . . . . Time . | . . . . . Parts Recycled . | . . . . . Recycled Matter . | . . . . . Retrieved Matter . | . . . . . Retrieved Components . | . . . . . Parts Scanalyzed . | . . . . . Part Schematics Acquired . | . . . . . Parts Damaged . | . . . . . Bothacking | -11 -10 -10 -9 -9 ------------ Run | Yrd Mat Min Mat Min Used RIF Installer . | . . . . . Robots Hacked . | . . . . . Non-combat . | . . . . . Combat . | . . . . . Robot Hacks Applied . | . . . . . Relay Couplers Released . | . . . . . Fabnet Peak Effective % . | . . . . . Robots Rewired . | . . . . . Allies Hacked . | . . . . . Hacks Repelled . | . . . . . Allies | -11 -10 -10 -9 -9 -------- Run | Yrd Mat Min Mat Min Total Allies . | . . . . . Largest Group . | . . . . . Highest-Rated Group . | . . . . . Highest-Rated Ally . | . . . . . Total Orders . | . . . . . Ally Attacks . | . . . . . Total Damage . | . . . . . Kills . | . . . . . Allies Corrupted . | . . . . . Allies Melted . | . . . . . Intel | -11 -10 -10 -9 -9 ------- Run | Yrd Mat Min Mat Min Active Infowar (turns) 296 | . 280 . . 16 Optics 296 | . 280 . . 16 Robot Analysis Total . | . . . . . Derelict Logs Recovered 1 | . . . . 1 Drone Launches . | . . . . . Drone Recoveries . | . . . . . Exploration | -11 -10 -10 -9 -9 ------------- Run | Yrd Mat Min Mat Min Turns Passed 1260 | 72 497 159 367 165 Spaces Moved 1111 | 51 273 114 444 229 Core 394 | 2 . . 336 56 Treads . | . . . . . Legs 484 | 49 273 114 48 . Wheels 60 | . . . 60 . Hover . | . . . . . Flight 173 | . . . . 173 Fastest Speed 37 | 50 120 120 50 37 Average Speed 80 | 121 120 120 61 42 Slowest Speed 190 | 190 120 120 120 120 Overloaded Moves . | . . . . . Propulsion Burnouts . | . . . . . Robots Hopped 2 | . . . . 2 Potential Cave-ins . | . . . . . Cave-ins Triggered . | . . . . . Exploration Rate (%) 40 | 5 61 35 50 51 Regions Visited 4 Branch Regions 2 Pre-discovered Areas 1 | . . . . 1 Known Exits Taken 3 | . 1 1 1 . Unknown Exits Taken 1 | 1 . . . . Scrap Searched 2 | . . 1 . 1 Spaces Dug . | . . . . . Terrain Destroyed . | . . . . . Melee . | . . . . . Projectile . | . . . . . AOE . | . . . . . Terrain Rammed . | . . . . . Walls Destroyed . | . . . . . Machines Disabled . | . . . . . Actions | -11 -10 -10 -9 -9 --------- Run | Yrd Mat Min Mat Min Total 1293 | 58 350 123 500 262 Wait 5 | . . . 5 . Move 1103 | 50 272 113 443 225 Hop 2 | . . . . 2 Pick Up 16 | 2 8 . 5 1 Fast Attach 21 | 6 2 1 6 6 Attach 6 | . . . 5 1 Detach 2 | . . . 2 . Swap 12 | . 5 1 4 2 Drop 20 | . 9 1 7 3 Fire 105 | . 54 7 22 22 Melee . | . . . . . Ram 1 | . . . 1 . Kick . | . . . . . Crush . | . . . . . Escape Stasis . | . . . . . Rewire . | . . . . . Trap . | . . . . . Miscellaneous . | . . . . . Route ------- -11/Scrapyard -10/Materials -10/Mines -9/Materials -9/Mines (discovered 3 exits: *Mat x2 / [*Exi]) History --------- Turn | Location | Event 32 | -11/Scrapyard | Discovered new exit (range 14) 73 | -11/Scrapyard | Entered Materials 323 | -10/Materials | Build established: Mutant 503 | -10/Materials | Discovered new exit (range 17) 568 | -10/Materials | Identified exit to Mines 570 | -10/Materials | Entered Mines 593 | -10/Mines | Met a Derelict bent on vengeance 681 | -10/Mines | Discovered new exit (range 16) 727 | -10/Mines | Identified exit to Materials 729 | -10/Mines | Entered Materials 729 | -9/Materials | Evolved 2 slots: Utility x2 874 | -9/Materials | Build established: Scavenger-Mutant 900 | -9/Materials | Core integrity fell below 50% 983 | -9/Materials | Lost 5 parts (3n1u1w) 1004 | -9/Materials | Discovered new exit (range 7) 1008 | -9/Materials | Identified exit to Mines 1096 | -9/Materials | Entered Mines 1102 | -9/Mines | Learned location of Zion (-7) 1165 | -9/Mines | Deemed a non-threat by the Exiles lab entrance 1165 | -9/Mines | Discovered new exit (range 5) 1181 | -9/Mines | Core integrity fell below 20% 1234 | -9/Mines | Discovered new exit (range 5) 1234 | -9/Mines | Discovered new exit (range 9) 1235 | -9/Mines | Identified exit to Materials 1251 | -9/Mines | Assembled infested the area 1261 | -9/Mines | Destroyed by D-53 Grenadier with Mini Grenade Launcher Last Messages --------------- EXIT=FOUND EXIT=IDENTIFIED: MATERIALS K-01 Serf collects debris. Searching scrap... Found Visual Processing Unit. Found EM Pulse Gun. Found Shotgun. Found Imp. Aluminum Leg. Found 48 Matter. Acquired Visual Processing Unit. K-01 Serf collects debris. ALERT: Infestation in the mines, dispatching Demolisher response squad. R-06 Scavenger destroyed. K-01 Serf collects debris. Acquired 48 matter. C-30 ARC bursts open, deploying its payload. D-53 Grenadier unfolds itself. K-01 Serf collects debris. The unstable cave ceiling collapses. Map ----- +----------------------------------------------------+ | ????????? #?????????????????? | | ????????# #?????????????????? | | ?????### #??????? ???????? | | ????## ##### ! ???????? | | ???## % ??????? | | ??## ??????????? | | ??# #??????????????????? | | ??# ##??????? ?????????? | | ??## #?????? ????????? | | ???## ##### ???????? | | ???## ???????? | | ???# ???????? | | ???# #### ### ???????? | | ???## ##?????#????????????? | | ????# ##???????????????????? | | ????#k #????????????????????? | | ????# #????????????????????? | | ????## ##????????????????????? | | ?##### #???###???????????????? | | ?# # =##?# ##??????????????? | | ?# [ ## #??????????????? | | ?# [ # #??????????????? | | ?# #???????????????? | | ?# #????????????????? | | ??# # #?????????????????? | | ??# @ # #?????????????????? | | ??## # ##???????????????? | | ???## ##?????????????? | | ????# d ?????????????? | | ???? # #?????????????? | | ????# d ## #?????????????? | | ????# % ?# #?????????????? | | ????## ??# ##????????????? | | ?????## ##??# ##???????????? | | ??????# ##??# #???????????? | | ?????## #### < #???????????? | | ????## ## #???????????? | | ????# < ##???????????? | | ????# ## ###????????????? | | ????## ## #??????????????? | | ?????## ### ##?????????????? | | ??????#####?# #?????????????? | | ????????????# #?????????????? | | ????????????## #?????????????? | | ???????##????# #???????###???? | | ???????# #####[ #??????## #???? | | ???????# = =#????### #???? | | ???????# #???## #???? | | ???????## #### #???# ##??? | | ????????###??# #??## ##?? | +----------------------------------------------------+ Best States ------------- Heat Dissipation 38 Energy Generation 14 Energy Capacity 280 Matter Stores 300 Matter Capacity 300 Sight Range 18 Terrain Scan Density 10 Armor Coverage 150 Evasion (%) 62 Offensive Hacking 10 Item Schematics ----------------- None Robot Schematics ------------------ None Fabricated ------------ Nothing Repaired ---------- Nothing Alien Tech Used ----------------- None Achievements -------------- None Challenges ------------ None Game ------ Seed SupersonicCarbideCharger Manual? 0 Play Time 00:16:53 Cumulative 83.1 hours Start 2025.05.11 @ 14:07:20 End 2025.05.11 @ 14:22:16 Sessions 1 Manual Loads 0 Difficulty Rogue Special Mode None Game No. 86 Rogue 86 Adventurer 0 Explorer 0 Win Type - Total 1 Types 1/0/0/0/0/0/0/0/0/0 Lore% 63 Gallery% 52 Achievement% 48 Wizard Run 0 Options --------- Layout 1 ASCII 0 Keyboard 0 Movement Mouse Keybinds 0 Fullscreen 2 Font 24/Smallcaps Map View 50x35 Zoom Use 0% Tactical HUD 0 Map Filters NONE Filters NONE Steam 1 RUN: 263a0c0e-2189-40b6-88b2-7592a9ce93c6